bitfinex/quotes_ETHUSD_20251120
["timestamp","ask_amount","ask_price","bid_price","bid_amount"]
[1763643307980,0.111,3032.5,3032.4,4.20571061]
[1763643308187,0.4983,3033.5,3032.6,0.405504]
[1763643308399,0.30809457,3033.9,3032.9,1.31249664]
[1763643308588,0.6093,3033.8,3033.1,0.405504]
[1763643308765,0.30809457,3033.7,3033.1,0.405504]
[1763643308962,0.30809457,3033.7,3033.1,1.31249664]
[1763643309262,0.80639457,3033.7,3033.1,1.31249664]
[1763643310062,0.4983,3033.7,3033.1,1.31249664]
[1763643310381,0.80638157,3033.7,3033.1,1.31249664]
[1763643310586,0.4983,3033.7,3033.2,6.59369642]
[1763643310759,0.4983,3033.6,3033.2,6.59369642]
[1763643310964,0.4773,3033.3,3033.2,4.20384085]
[1763643311177,0.5883,3033.3,3033.2,4.20384085]
[1763643311996,1.0366,3033.3,3033.2,4.20384085]
[1763643312195,1.0358,3033.3,3033.2,4.20384085]
[1763643312400,0.5375,3033.3,3033.2,4.20384085]
[1763643312768,1.0358,3033.3,3033.2,4.20384085]
[1763643313673,1.0358,3033.3,3032.6,0.405504]
[1763643313906,0.5395106,3033.2,3032.5,7.5022111]
[1763643314212,0.5395106,3033.2,3032.6,0.405504]
[1763643314595,0.669,3032.7,3032.5,6.59521846]
[1763643314830,0.5883,3032.6,3032.4,0.001]
[1763643315014,0.4773,3032.5,3032.4,0.001]
[1763643315409,0.9756,3032.5,3032.4,0.001]
[1763643316338,10.13,3033.5,3032.4,0.001]
[1763643316339,0.111,3032.8,3032.4,0.001]
[1763643316547,0.111,3032.8,3032.6,1.31249664]
[1763643316700,0.111,3032.8,3032.7,4.47347381]
[1763643318301,0.111,3032.8,3032.7,3.70289576]
[1763643320747,0.002,3033.0,3032.9,0.405504]
[1763643320928,0.002,3033.0,3032.9,4.60967096]
[1763643322208,0.1808,3034.1,3033.1,0.405504]
[1763643322408,0.1808,3034.1,3032.9,17.82093261]
[1763643322409,0.2918,3034.1,3033.4,1.31249664]
[1763643322626,0.2918,3034.1,3033.6,0.405504]
[1763643323105,0.7901,3034.1,3033.7,9.88891452]
[1763643324213,0.4773,3033.8,3033.7,4.60880148]
[1763643324942,0.9756,3033.8,3033.7,4.20329748]
[1763643325417,1.28382122,3033.8,3033.3,6.59347904]
[1763643325608,0.4983,3033.7,3033.3,6.59347904]
[1763643325808,0.4983,3033.7,3033.3,9.89021856]
[1763643327211,0.4983,3033.7,3033.1,11.20336734]
[1763643329245,0.79012167,3034.0,3033.1,16.58968549]
[1763643329447,0.79012167,3034.0,3033.5,0.90699264]
[1763643329653,0.30822167,3034.0,3033.5,0.90699264]
[1763643329807,0.60002167,3034.1,3033.5,0.90699264]
[1763643330443,1.08192167,3034.1,3033.5,0.90699264]
[1763643330644,0.30822167,3034.0,3033.5,0.90699264]
[1763643330851,0.4702,3033.6,3033.5,1.31249664]
[1763643331340,0.4702,3033.6,3033.5,4.6090188]
[1763643331847,1.0631,3033.6,3033.5,4.2035148]
[1763643332048,1.0631,3033.6,3033.5,3.29652216]
[1763643332354,1.0631,3033.6,3033.5,9.68980603]
[1763643332355,0.111,3033.6,3033.5,9.68980603]
[1763643332508,0.5812,3033.6,3033.5,9.68980603]
[1763643332714,1.0631,3033.6,3033.5,9.68980603]
[1763643333556,1.0631,3033.6,3033.5,3.29652216]
[1763643333849,0.5812,3033.6,3033.5,3.29652216]
[1763643334144,1.0631,3033.6,3033.5,3.29652216]
[1763643335114,1.37151529,3033.6,3033.5,3.29652216]
[1763643335646,1.37151529,3033.6,3033.1,6.39328387]
[1763643335647,1.37151529,3033.6,3033.2,7.90617201]
[1763643335944,0.9521,3033.5,3033.2,7.90617201]
[1763643336441,0.4694,3033.5,3033.2,7.90617201]
[1763643336610,0.4702,3033.3,3033.2,4.2038198]
[1763643336815,0.4702,3033.3,3033.0,3.29702587]
[1763643337035,0.4702,3033.2,3033.0,6.59409148]
[1763643337365,0.113,3033.6,3033.0,4.60952251]
[1763643337366,0.111,3033.1,3033.0,4.60952251]
[1763643337651,0.111,3033.5,3033.1,0.90699264]
[1763643337815,0.111,3033.5,3033.3,0.90699264]
[1763643338343,0.111,3033.5,3033.4,6.39328387]
[1763643339954,1.0546,3033.5,3033.4,9.68991471]
[1763643340316,0.5647,3033.5,3033.4,9.68991471]
[1763643341464,0.111,3033.5,3033.4,9.68991471]
[1763643342118,0.111,3033.5,3033.4,10.09541871]
[1763643342440,0.5647,3033.5,3033.4,10.09541871]
[1763643342951,0.111,3033.5,3033.4,10.09541871]
[1763643343149,0.111,3033.5,3033.4,11.52533309]
[1763643343924,0.111,3033.5,3033.4,10.09541871]
[1763643345437,0.002,3033.6,3033.5,0.405504]
[1763643345623,0.002,3033.6,3033.5,1.31249664]
[1763643346255,0.4557,3033.6,3033.5,4.6090188]
[1763643346449,0.4557,3033.6,3033.5,4.2035148]
[1763643346651,0.9456,3033.6,3033.5,4.2035148]
[1763643347038,0.4557,3033.6,3033.5,4.2035148]
[1763643347240,0.9456,3033.6,3033.5,4.2035148]
[1763643347620,1.25455233,3033.6,3033.5,4.2035148]
[1763643348046,0.002,3033.6,3033.5,4.2035148]
[1763643348436,0.9456,3033.6,3033.5,3.29652216]
[1763643348637,1.25455179,3033.6,3033.5,3.29652216]
[1763643349735,1.25455179,3033.6,3033.3,3.29668244]
[1763643349932,1.25455179,3033.6,3032.9,0.001]
[1763643349933,0.4537,3033.4,3032.9,0.001]
[1763643350159,0.30895179,3033.3,3033.0,0.90699264]
[1763643350329,0.4537,3033.1,3033.0,0.90699264]
[1763643350535,0.5647,3033.1,3033.0,0.90699264]
[1763643350738,1.0546,3033.1,3033.0,0.90699264]
[1763643351361,1.36368555,3033.1,3033.0,0.90699264]
[1763643352155,1.36368555,3033.1,3033.0,4.20405825]
[1763643352560,1.36368555,3033.1,3033.0,3.29706561]
[1763643353958,1.36368555,3033.1,3032.9,3.29817432]
[1763643354154,1.25268555,3033.0,3032.9,0.001]
[1763643354541,0.76278555,3033.0,3032.9,0.001]
[1763643355097,1.25268555,3033.0,3032.9,0.001]
[1763643356153,0.76278555,3033.0,3032.9,0.001]
[1763643356480,1.25268555,3033.0,3032.9,0.001]
[1763643357460,1.25230881,3033.0,3032.9,0.001]
[1763643358482,0.9436,3033.0,3032.9,0.001]
[1763643358779,0.4537,3033.0,3032.9,0.001]
[1763643359801,0.002,3033.1,3032.9,0.001]
[1763643359985,0.4537,3033.0,3032.9,0.001]
[1763643360176,0.9428,3033.0,3032.9,0.001]
[1763643360578,0.002,3033.1,3032.9,0.001]
[1763643360764,0.002,3033.1,3033.0,7.30027651]
[1763643361866,0.111,3033.2,3033.1,0.405504]
[1763643362201,0.111,3033.5,3033.1,10.2963747]
[1763643362900,0.111,3033.5,3033.4,6.11118703]
[1763643364166,0.111,3033.5,3033.4,9.40781787]
[1763643365166,0.111,3034.0,3033.5,1.31249664]
[1763643365490,0.111,3034.0,3033.8,6.11118703]
[1763643366292,0.111,3034.0,3033.9,4.20308018]
[1763643368583,1.0796,3034.0,3033.9,4.20308018]
[1763643369325,1.38796686,3034.0,3033.2,6.11118703]
[1763643369478,1.46096686,3033.9,3033.2,6.11118703]
[1763643369680,0.30836686,3033.8,3033.2,6.11118703]
[1763643369914,0.77716686,3033.8,3033.2,6.11118703]
[1763643370098,0.4688,3033.7,3033.3,0.90699264]
[1763643370427,0.4688,3033.7,3033.5,0.90699264]
[1763643370789,0.30836686,3033.8,3033.6,6.11118703]
[1763643371124,0.4688,3033.8,3033.6,6.11118703]
[1763643371332,0.4998,3033.7,3033.6,6.11118703]
[1763643371698,0.9686,3033.7,3033.6,6.11118703]
[1763643371893,1.27696474,3033.7,3033.6,6.11118703]
[1763643372095,1.27696474,3033.7,3033.5,0.90699264]
[1763643372295,0.9686,3033.6,3033.5,0.90699264]
[1763643372712,0.9686,3033.6,3033.5,4.2035148]
[1763643373328,0.9686,3033.6,3033.5,3.29652216]
[1763643373529,1.2769933,3033.6,3033.5,3.29652216]
[1763643373895,1.3879933,3033.6,3033.5,3.29652216]
[1763643374328,1.3879933,3033.6,3033.3,3.29673952]
[1763643374516,0.9686,3033.5,3033.3,6.59347904]
[1763643374817,0.4998,3033.4,3033.3,4.20373216]
[1763643375224,0.111,3033.6,3033.3,13.61165871]
[1763643379224,0.111,3033.6,3033.4,0.90699264]
[1763643380939,0.30841905,3033.8,3033.4,0.90699264]
[1763643380940,0.30841905,3033.8,3033.6,6.592827]
[1763643381142,0.111,3033.9,3033.7,4.70086855]
[1763643382322,0.111,3033.9,3033.8,4.70086855]
[1763643383005,0.002,3034.0,3033.9,0.90699264]
[1763643383217,0.002,3034.0,3033.9,7.71830233]
[1763643384240,0.0012,3034.0,3033.9,7.71830233]
[1763643384836,0.0012,3034.0,3033.9,3.01743378]
[1763643385037,0.501,3034.0,3033.9,4.20308018]
[1763643385628,0.9698,3034.0,3033.4,3.29663084]
[1763643385839,0.6838,3033.9,3033.4,9.88989252]
[1763643386016,0.111,3033.8,3033.4,9.88989252]
[1763643387139,0.111,3033.8,3033.4,3.29663084]
[1763643387332,0.0012,3034.0,3033.8,0.405504]
[1763643387728,0.0012,3034.0,3033.8,0.90699264]
[1763643388354,0.0012,3034.0,3033.9,0.405504]
[1763643389142,0.0012,3034.0,3033.9,4.60858418]
[1763643389931,0.0012,3034.0,3033.9,4.20308018]
[1763643391443,0.9698,3034.0,3033.9,4.20308018]
[1763643393133,0.9698,3034.0,3033.2,3.29684821]
[1763643393134,1.27847459,3034.0,3033.2,3.29684821]
[1763643393332,0.4959,3033.3,3033.2,3.29684821]
[1763643393531,0.4959,3033.3,3033.2,4.20384085]
[1763643393715,0.4959,3033.3,3033.2,3.29684821]
[1763643394141,0.4959,3033.3,3033.2,4.20384085]
[1763643394341,0.7692,3033.5,3033.3,0.90699264]
[1763643394645,0.2918,3033.5,3033.3,0.90699264]
[1763643395124,0.111,3033.5,3033.3,0.90699264]
[1763643395327,0.111,3033.5,3033.4,4.20362348]
[1763643396859,0.6069,3033.5,3033.4,4.20362348]
[1763643397262,0.111,3033.5,3033.4,4.20362348]
[1763643398958,0.0012,3034.0,3033.5,0.90699264]
[1763643399143,0.88827966,3035.3,3034.5,1.31249664]
[1763643399344,1.18383774,3035.5,3035.3,3.29456725]
[1763643399345,0.4514,3035.5,3035.3,3.29456725]
[1763643399654,0.50747571,3035.4,3035.3,3.29456725]
[1763643399855,1.43527571,3035.4,3035.3,3.29456725]
[1763643400954,1.1268,3035.4,3035.3,3.29456725]
[1763643401158,1.43499941,3035.4,3035.3,3.29456725]
[1763643401547,1.43499941,3035.4,3034.9,7.4969644]
[1763643401748,1.1268,3035.4,3034.9,7.4969644]
[1763643401938,0.4514,3035.3,3034.9,7.4969644]
[1763643402326,0.4514,3035.3,3034.9,10.79196588]
[1763643403058,0.4514,3035.3,3034.9,7.4969644]
[1763643403257,0.4764,3035.0,3034.9,4.20196292]
[1763643403957,0.9278,3035.0,3034.9,4.20196292]
[1763643407765,0.9278,3035.0,3034.6,0.90699264]
[1763643407929,0.6465,3034.9,3034.6,0.90699264]
[1763643408257,0.4756,3034.7,3034.6,0.90699264]
[1763643408638,0.927,3034.7,3034.6,0.90699264]
[1763643409034,0.4756,3034.7,3034.6,0.90699264]
[1763643409764,0.4756,3034.7,3034.6,4.20231986]
[1763643410132,0.111,3034.8,3034.6,7.49764708]
[1763643410361,0.4764,3034.7,3034.6,4.20231986]
[1763643410736,0.9278,3034.7,3034.6,4.20231986]
[1763643412167,0.111,3034.8,3034.6,7.49764708]
[1763643415661,0.4764,3034.7,3034.6,4.20231986]
[1763643417066,0.111,3034.8,3034.6,7.49764708]
[1763643417869,0.4764,3034.7,3034.6,4.20231986]
[1763643418456,0.111,3034.8,3034.6,7.49764708]
[1763643418843,0.111,3034.8,3034.7,5.60432825]
[1763643419275,1.0388,3034.8,3034.7,5.60432825]
[1763643421087,1.0388,3034.8,3034.7,4.20221127]
[1763643421246,1.0388,3034.8,3033.9,4.69733561]
[1763643421570,0.4764,3034.0,3033.7,4.69733561]
[1763643421754,0.4764,3034.0,3033.9,4.69733561]
[1763643421950,0.9278,3034.0,3033.9,4.69733561]
[1763643422152,0.9278,3034.0,3033.7,4.69733561]
[1763643422350,0.111,3034.1,3033.7,4.69733561]
[1763643422351,0.6465,3033.9,3033.7,4.69733561]
[1763643422583,0.4764,3033.8,3033.6,6.592827]
[1763643422747,0.4764,3033.7,3033.6,4.20340614]
[1763643422947,0.4764,3033.7,3033.4,0.001]
[1763643423380,0.111,3034.1,3033.4,0.406504]
[1763643423583,0.111,3034.1,3033.4,0.001]
[1763643423759,0.5624,3034.1,3033.4,0.001]
[1763643424977,0.5624,3034.1,3033.5,0.90699264]
[1763643425476,0.6715,3033.6,3033.5,0.90699264]
[1763643425851,1.1229,3033.6,3033.5,0.90699264]
[1763643426046,1.1229,3033.6,3033.4,6.59426168]
[1763643426252,1.0388,3033.5,3033.4,3.29763084]
[1763643427989,1.0388,3033.5,3033.4,0.001]
[1763643428369,0.197,3033.9,3033.4,0.001]
[1763643428564,0.111,3033.6,3033.4,0.001]
[1763643430168,0.1951,3034.9,3033.5,0.90699264]
[1763643430395,0.457,3034.1,3033.5,4.59799264]
[1763643430601,0.111,3034.0,3033.5,4.59799264]
[1763643430986,0.4741,3033.6,3033.5,4.59799264]
[1763643432097,0.4741,3033.6,3033.5,6.98752216]
[1763643432302,0.9303,3033.6,3033.5,6.98752216]
[1763643433372,0.9303,3033.6,3033.5,3.691]
[1763643433603,0.9303,3033.6,3033.4,3.29759778]
[1763643433776,1.0421,3033.5,3033.4,0.001]
[1763643436578,1.34975966,3033.5,3033.4,0.001]
[1763643437306,1.0421,3033.5,3033.4,0.001]
[1763643439013,1.3496525,3033.5,3033.4,0.001]
[1763643439185,1.0421,3033.5,3033.4,0.001]
[1763643440610,1.34958271,3033.5,3033.4,0.001]
[1763643444122,1.34951298,3033.5,3033.4,0.001]
[1763643446989,31.39092034,3033.5,3033.4,0.001]
[1763643447228,32.90624562,3033.5,3033.4,0.001]
[1763643447409,32.90624562,3033.5,3033.0,0.001]
[1763643447410,0.90699264,3033.2,3033.0,0.001]
[1763643447713,6.21897182,3033.1,3033.0,0.001]
[1763643447896,6.67597182,3033.1,3033.0,0.001]
[1763643448097,1.34971382,3033.1,3033.0,0.001]
[1763643448310,10.56813482,3033.1,3033.0,0.001]
[1763643448712,1.34971382,3033.1,3033.0,0.001]
[1763643450424,6.1391623,3033.1,3033.0,0.001]
[1763643451001,2.25690594,3033.1,3033.0,0.001]
[1763643451205,31.84249264,3033.0,3032.7,0.001]
[1763643451405,14.505578,3032.8,3032.7,0.001]
[1763643451606,14.8133913,3032.8,3032.7,0.001]
[1763643451835,15.2797913,3032.8,3032.7,0.001]
[1763643452205,4.4235893,3032.8,3032.7,0.001]
[1763643452539,4.46487954,3032.8,3032.7,0.001]
[1763643453304,35.67577921,3032.8,3032.7,0.001]
[1763643453506,33.51790218,3032.8,3032.7,0.001]
[1763643453929,31.97958741,3032.8,3032.7,0.001]
[1763643454134,28.19842341,3032.8,3032.7,0.001]
[1763643454408,25.663675,3032.6,3032.4,0.001]
[1763643454638,26.55163274,3032.6,3032.4,0.001]
[1763643454824,30.31553323,3032.6,3032.4,0.001]
[1763643455132,31.22252587,3032.6,3032.4,0.001]
[1763643455338,18.85037664,3032.4,3032.0,0.001]
[1763643455520,19.62733438,3032.4,3032.0,0.001]
[1763643455837,18.18189938,3032.4,3032.0,0.001]
[1763643456214,11.18602038,3032.4,3032.0,0.001]
[1763643456412,4.61143938,3032.4,3032.0,0.001]
[1763643457561,25.56449782,3032.4,3032.0,0.001]
[1763643457778,28.82099432,3032.4,3032.0,0.001]
[1763643457962,28.75964764,3032.2,3032.0,0.001]
[1763643458152,29.17850538,3032.2,3032.0,0.001]
[1763643458470,25.40185038,3032.2,3032.0,0.001]
[1763643459031,26.14156087,3032.2,3032.0,0.001]
[1763643459231,26.54706487,3032.2,3032.0,0.001]
[1763643459431,35.95878987,3032.2,3032.0,0.001]
[1763643460358,17.73481364,3031.9,3031.8,0.001]
[1763643460560,23.99844338,3031.9,3031.8,0.001]
[1763643460749,23.38476938,3031.9,3031.8,0.001]
[1763643460946,26.68303119,3031.9,3031.8,0.001]
[1763643461561,36.05721619,3031.9,3031.8,0.001]
[1763643461731,33.89261219,3031.9,3031.8,0.001]
[1763643461932,34.77697511,3031.9,3031.8,0.001]
[1763643462556,36.94157911,3031.9,3031.8,0.001]
[1763643462758,0.405504,3031.7,3030.6,0.001]
[1763643462937,0.6782,3030.7,3030.6,0.001]
[1763643463140,1.2496,3030.7,3030.6,0.001]
[1763643463355,1.55745774,3030.7,3030.6,0.001]
[1763643464967,0.30785774,3030.7,3030.6,0.001]
[1763643465169,0.6452,3031.3,3030.6,0.001]
[1763643465396,0.41885774,3031.2,3030.6,0.001]
[1763643466098,0.111,3031.2,3030.6,0.001]
[1763643467204,0.111,3031.2,3030.6,0.66117888]
[1763643468280,0.76825774,3031.6,3031.0,6.40033812]
[1763643468281,0.30785774,3031.5,3031.0,6.40033812]
[1763643468479,0.111,3031.6,3031.0,6.40033812]
[1763643469197,0.111,3031.6,3031.1,9.89739696]
[1763643469394,0.111,3031.6,3031.2,1.62977351]
[1763643471012,0.111,3031.6,3031.3,6.5978293]
[1763643471794,0.111,3031.6,3030.7,3.2994899]
[1763643471795,0.111,3031.6,3030.7,3.29956775]
[1763643472000,0.111,3031.6,3030.7,6.5991355]
[1763643472531,0.41758489,3031.6,3030.7,6.5991355]
[1763643473031,0.41758489,3031.6,3030.7,8.29527701]
[1763643473229,0.41758489,3031.6,3030.7,11.59484476]
[1763643473414,0.111,3031.6,3030.7,11.59484476]
[1763643474818,0.111,3031.6,3030.7,8.29527701]
[1763643475015,0.111,3031.6,3030.7,11.59484476]
[1763643475221,0.111,3031.6,3030.8,1.22560236]
[1763643477338,0.4604,3031.5,3030.9,3.29935002]
[1763643477531,0.76824906,3031.5,3030.9,3.29935002]
[1763643478027,0.76824906,3031.5,3030.9,6.59870004]
[1763643479107,0.30784906,3031.4,3030.6,0.90799264]
[1763643479308,0.76824906,3031.5,3030.6,0.90799264]
[1763643480043,0.4604,3031.5,3030.6,0.90799264]
[1763643480246,0.30729384,3031.4,3030.6,0.90799264]
[1763643480422,0.30729384,3031.4,3030.6,1.98882382]
[1763643481245,0.111,3031.6,3030.7,9.89870325]
[1763643483559,0.5714,3031.6,3030.7,6.5991355]
[1763643483781,0.5714,3031.6,3030.6,3.30067122]
[1763643484558,0.5714,3031.6,3030.6,6.60034785]
[1763643484761,0.5714,3031.6,3030.6,3.30067122]
[1763643485131,0.5714,3031.6,3030.6,6.60034785]
[1763643485637,0.111,3031.6,3030.7,6.12356631]
[1763643486437,0.4604,3031.5,3030.6,0.001]
[1763643487335,0.04123507,3031.4,3030.6,0.001]
[1763643487749,0.4604,3031.3,3030.6,0.001]
[1763643488786,0.111,3031.6,3030.6,0.001]
[1763643489078,0.52963371,3031.5,3030.6,0.001]
[1763643489365,0.4884,3031.5,3030.6,0.001]
[1763643489769,0.4884,3031.5,3030.7,0.90699264]
[1763643490067,0.111,3031.6,3030.7,0.90699264]
[1763643490654,0.5994,3031.6,3030.7,0.90699264]
[1763643490988,0.111,3031.6,3030.7,7.78139354]
[1763643491961,0.111,3031.6,3030.8,9.89837664]
[1763643492167,0.30863444,3031.5,3030.8,6.59891776]
[1763643492365,0.30863444,3031.4,3030.8,6.59891776]
[1763643492566,0.5994,3031.6,3030.8,6.59891776]
[1763643492567,0.30863444,3031.5,3030.8,6.59891776]
[1763643492769,0.30863444,3031.4,3030.8,11.66646164]
[1763643492990,0.111,3031.6,3030.8,11.66646164]
[1763643492991,0.30863444,3031.5,3030.8,11.66646164]
[1763643493200,0.30863444,3031.4,3030.8,11.66646164]
[1763643493404,0.111,3031.6,3030.8,11.66646164]
[1763643493405,0.30863444,3031.3,3030.8,11.66646164]
[1763643493697,0.30863444,3031.5,3030.8,8.36700276]
[1763643493866,0.30863444,3031.4,3030.8,8.36700276]
[1763643494062,0.30863444,3031.3,3030.8,6.59891776]
[1763643494267,0.30863444,3031.5,3030.8,6.59891776]
[1763643494470,0.30863444,3031.4,3030.8,6.59891776]
[1763643494667,0.30863444,3031.3,3030.8,6.59891776]
[1763643494886,0.5994,3031.6,3030.8,6.59891776]
[1763643494887,0.30863444,3031.2,3030.8,6.59891776]
[1763643495092,0.30863444,3031.5,3030.8,6.59891776]
[1763643495254,0.30863444,3031.4,3030.8,6.59891776]
[1763643495458,0.30863444,3031.3,3030.8,6.59891776]
[1763643495661,0.30863444,3031.2,3030.8,6.59891776]
[1763643495859,0.30863444,3031.5,3030.8,6.59891776]
[1763643496156,0.5994,3031.6,3030.7,3.29953731]
[1763643496157,0.30863444,3031.4,3030.7,3.29953731]
[1763643496391,0.30863444,3031.3,3030.7,3.09189731]
[1763643496608,0.30863444,3031.2,3030.7,3.09189731]
[1763643496771,0.30863444,3031.1,3030.7,6.39146506]
[1763643497092,0.41963444,3031.0,3030.7,3.09189731]
[1763643497292,0.30863444,3030.9,3030.7,3.09189731]
[1763643497500,0.30863444,3030.8,3030.7,3.09189731]
[1763643497696,0.30863444,3030.9,3030.7,3.09189731]
[1763643497919,0.111,3031.0,3030.7,3.09189731]
[1763643497920,0.30863444,3030.8,3030.7,3.09189731]
[1763643498109,0.30863444,3030.9,3030.6,0.001]
[1763643498516,0.30863444,3030.9,3030.6,0.61355663]
[1763643499305,0.30863444,3030.9,3030.6,0.001]
[1763643499505,0.111,3031.0,3030.6,0.001]
[1763643500089,0.41963444,3031.0,3030.6,0.001]
[1763643500299,0.30863444,3030.9,3030.6,6.60035326]
[1763643500610,0.30863444,3030.9,3030.6,9.90002989]
[1763643504179,0.30783444,3030.9,3030.6,6.60035326]
[1763643504381,0.30783444,3030.9,3030.7,0.90699264]
[1763643504578,0.111,3031.0,3030.7,1.31249664]
[1763643504916,0.111,3031.0,3030.9,6.12356631]
[1763643506321,0.111,3031.0,3030.8,6.59891776]
[1763643509244,0.111,3031.0,3030.9,6.12356631]
[1763643509423,0.111,3031.0,3030.9,7.48651398]
[1763643509747,0.111,3031.0,3030.8,6.59891776]
[1763643512902,0.111,3031.0,3030.9,4.70889073]
[1763643513516,0.111,3031.0,3030.9,8.00824075]
[1763643516306,0.42048573,3031.0,3030.9,8.00824075]
[1763643516900,0.111,3031.0,3030.9,8.00824075]
[1763643517096,0.111,3031.0,3030.9,13.93860071]
[1763643517438,0.111,3031.0,3030.9,9.22970998]
[1763643517620,0.30948573,3031.4,3030.9,14.60694079]
[1763643517802,0.113,3031.5,3031.3,4.70889073]
[1763643518003,0.30946135,3031.4,3031.3,4.70889073]
[1763643518231,1.24066135,3031.4,3031.3,4.70889073]
[1763643518950,1.24066135,3031.4,3030.9,6.59870004]
[1763643518951,1.24066135,3031.4,3030.9,11.30759077]
[1763643519099,0.4901,3031.0,3030.9,8.00824075]
[1763643519305,0.30946135,3031.2,3030.9,11.30759077]
[1763643519602,0.4638,3031.2,3031.1,4.70889073]
[1763643519801,0.4901,3031.0,3030.9,8.00924075]
[1763643520108,0.7996,3031.0,3030.9,8.00924075]
[1763643520314,0.8016,3031.0,3030.9,8.00924075]
[1763643522041,0.9126,3031.0,3030.9,8.00924075]
[1763643523439,0.4225,3031.0,3030.9,8.00924075]
[1763643524409,0.113,3031.0,3030.9,9.23080906]
[1763643524615,0.113,3031.0,3030.9,13.93969979]
[1763643525513,0.113,3031.0,3030.9,9.23080906]
[1763643525696,0.113,3031.0,3030.9,12.71813148]
[1763643525901,0.113,3031.0,3030.9,8.00924075]
[1763643526700,0.002,3031.4,3030.9,20.22382416]
[1763643526701,0.3095,3031.3,3030.9,20.22382416]
[1763643526902,0.3095,3031.3,3031.1,4.70889073]
[1763643527122,0.3095,3031.3,3031.1,5.31649508]
[1763643527535,0.3095,3031.3,3031.2,4.70889073]
[1763643527927,0.3095,3031.3,3031.1,5.31649508]
[1763643528133,0.3087,3031.3,3031.2,4.70889073]
[1763643528328,0.113,3031.4,3031.3,3.29891465]
[1763643528940,0.002,3031.4,3031.3,5.80747832]
[1763643529140,0.002,3031.7,3031.4,0.405504]
[1763643529347,0.002,3031.7,3031.6,4.70889073]
[1763643530342,0.002,3031.7,3031.6,8.00747893]
[1763643534041,0.002,3031.9,3031.7,0.405504]
[1763643534213,0.002,3032.2,3032.1,4.70889073]
[1763643534419,0.4921,3032.2,3032.1,8.00693498]
[1763643535349,0.9559,3032.2,3032.1,8.00693498]
[1763643536467,0.4921,3032.2,3032.1,8.00693498]
[1763643537170,0.9559,3032.2,3032.1,8.00693498]
[1763643541592,0.002,3032.2,3032.1,8.00693498]
[1763643542388,0.9559,3032.2,3032.1,8.00693498]
[1763643543164,0.002,3032.2,3032.1,8.00693498]
[1763643543360,0.4921,3032.2,3032.1,8.00693498]
[1763643543566,0.9559,3032.2,3032.1,8.00693498]
[1763643544095,0.9559,3032.2,3031.9,8.0071094]
[1763643544297,0.4901,3032.0,3031.9,3.29821867]
[1763643544666,0.9539,3032.0,3031.9,3.29821867]
[1763643544866,0.9539,3032.0,3031.9,8.0071094]
[1763643546904,0.9539,3032.0,3031.7,4.70702483]
[1763643547200,1.138,3031.9,3031.7,4.70702483]
[1763643547574,0.111,3032.1,3031.7,4.70702483]
[1763643547787,0.111,3032.1,3032.0,4.70702483]
[1763643548792,1.0602,3032.1,3031.9,3.29826181]
[1763643548996,1.0602,3032.1,3031.9,6.59652362]
[1763643549170,0.9492,3032.0,3031.9,3.29826181]
[1763643551491,0.9492,3032.0,3031.8,6.59673195]
[1763643551677,0.4717,3031.9,3031.8,3.29836135]
[1763643552303,1.1383,3031.9,3031.8,3.29836135]
[1763643553472,1.1383,3031.9,3031.5,0.001]
[1763643553473,1.1383,3031.9,3031.5,7.50538666]
[1763643553675,0.4717,3031.8,3031.7,4.70702483]
[1763643553873,0.6674,3031.9,3031.7,4.70702483]
[1763643554295,0.4717,3031.8,3031.7,4.70702483]
[1763643554610,0.111,3032.1,3031.7,4.70702483]
[1763643554781,0.4775,3032.0,3031.7,4.70702483]
[1763643554983,0.78628469,3032.0,3031.7,4.70702483]
[1763643555175,0.30878469,3031.9,3031.7,4.70702483]
[1763643555508,0.4717,3031.8,3031.7,8.00550423]
[1763643555708,1.25809527,3031.8,3031.5,0.001]
[1763643555894,0.4717,3031.6,3031.5,0.001]
[1763643556301,0.9492,3031.6,3031.5,0.001]
[1763643557608,1.25829332,3031.6,3031.5,0.001]
[1763643559217,0.78079332,3031.6,3031.5,4.70802483]
[1763643559419,0.113,3032.0,3031.6,0.90699264]
[1763643559578,0.5905,3032.0,3031.9,4.70702483]
[1763643559777,0.5905,3032.0,3031.7,0.90699264]
[1763643560215,0.113,3032.0,3031.7,0.90699264]
[1763643561029,0.113,3032.0,3031.8,6.5967412]
[1763643561209,0.4717,3031.8,3031.5,6.59837759]
[1763643561528,0.6674,3031.9,3031.5,3.29968058]
[1763643561529,0.4717,3031.6,3031.5,3.29968058]
[1763643561822,0.9492,3031.6,3031.5,3.29968058]
[1763643562933,0.111,3031.6,3031.5,8.00670541]
[1763643564729,1.0602,3031.6,3031.5,3.29969701]
[1763643564931,1.0602,3031.6,3031.5,0.001]
[1763643566238,0.111,3031.6,3031.5,0.001]
[1763643566447,0.111,3031.6,3031.5,4.70802483]
[1763643567441,0.111,3031.6,3031.5,8.00672184]
[1763643570653,0.002,3032.0,3031.5,15.73476787]
[1763643570853,0.113,3032.0,3031.9,4.70702483]
[1763643571352,0.874798,3032.0,3031.9,4.70702483]
[1763643571848,0.874798,3032.0,3031.9,8.00528664]
[1763643572354,1.357298,3032.0,3031.9,8.00528664]
[1763643575515,1.357298,3032.0,3031.6,8.0055989]
[1763643575715,0.974098,3031.9,3031.6,8.0055989]
[1763643575951,0.4527,3031.7,3031.6,8.0055989]
[1763643576148,0.4519,3031.7,3031.6,8.0055989]
[1763643576448,0.309098,3031.8,3031.6,11.3041871]
[1763643576787,0.4527,3031.7,3031.6,4.70702483]
[1763643576954,0.4492,3031.2,3030.8,0.001]
[1763643577129,0.791598,3031.7,3030.8,0.001]
[1763643577130,0.4493,3031.0,3030.8,0.001]
[1763643577329,0.420098,3031.0,3030.8,0.001]
[1763643577542,0.5637,3031.0,3030.8,0.001]
[1763643577729,0.872798,3031.0,3030.8,0.001]
[1763643577934,1.355298,3031.0,3030.8,0.001]